bitfinex-derivatives/quotes_BTCF0:USTF0_20240917
["timestamp","ask_amount","ask_price","bid_price","bid_amount"]
[1726601828584,0.08920442,60428.0,60427.0,0.444523]
[1726601832188,0.17192642,60428.0,60427.0,0.3618]
[1726601832483,0.36192642,60428.0,60427.0,0.3618]
[1726601833084,0.08920442,60428.0,60427.0,0.3618]
[1726601834585,0.08920442,60428.0,60427.0,0.001]
[1726601835381,0.08920442,60428.0,60427.0,0.083723]
[1726601835585,0.08620442,60428.0,60427.0,0.083723]
[1726601838794,0.3608,60448.0,60427.0,0.444523]
[1726601838993,0.082722,60428.0,60427.0,0.444523]
[1726601839197,0.082722,60428.0,60427.0,0.805323]
[1726601844899,0.082722,60428.0,60412.0,0.09898228]
[1726601845086,0.082722,60428.0,60380.0,0.3608]
[1726601845087,0.082773,60391.0,60380.0,0.3608]
[1726601845292,0.1658,60400.0,60380.0,0.3608]
[1726601845293,0.082768,60395.0,60388.0,0.3608]
[1726601845590,0.00248416,60405.0,60390.0,0.3608]
[1726601845804,0.082768,60395.0,60390.0,0.3608]
[1726601846107,0.272768,60395.0,60390.0,0.41032103]
[1726601846291,0.082769,60394.0,60390.0,0.41032103]
[1726601846487,0.19,60395.0,60390.0,0.41032103]
[1726601846898,0.08277,60393.0,60390.0,0.41032103]
[1726601847199,0.082772,60392.0,60390.0,0.41032103]
[1726601847505,0.272773,60391.0,60386.0,0.1922]
[1726601847705,0.19,60391.0,60386.0,0.24172103]
[1726601847905,0.272773,60391.0,60390.0,0.001]
[1726601848292,0.082779,60386.0,60385.0,0.00248405]
[1726601848496,0.081779,60386.0,60385.0,0.00248405]
[1726601848800,0.271779,60386.0,60385.0,0.00248405]
[1726601850004,0.270779,60386.0,60385.0,0.00248405]
[1726601850605,0.281779,60386.0,60385.0,0.00348405]
[1726601852202,0.642579,60386.0,60385.0,0.00348405]
[1726601853513,0.725358,60386.0,60385.0,0.00348405]
[1726601853904,0.725358,60386.0,60385.0,5e-08]
[1726601854212,1.904937,60386.0,60385.0,5e-08]
[1726601855800,0.165592,60374.0,60366.0,0.1866]
[1726601856000,0.082806,60367.0,60366.0,0.1866]
[1726601856300,0.082811,60363.0,60362.0,0.0925]
[1726601856506,0.272811,60363.0,60362.0,0.14202103]
[1726601856809,0.272811,60363.0,60362.0,0.14972405]
[1726601857013,0.272811,60363.0,60362.0,0.10020302]
[1726601857513,0.082812,60362.0,60361.0,0.00248504]
[1726601857708,0.443612,60362.0,60361.0,0.00248504]
[1726601858015,0.437612,60362.0,60361.0,0.00248504]
[1726601858408,0.520424,60362.0,60361.0,0.00248504]
[1726601858609,0.437612,60362.0,60361.0,0.00248504]
[1726601859111,0.39617256,60362.0,60361.0,0.00248504]
[1726601859312,0.08284,60342.0,60340.0,0.3608]
[1726601859514,0.38561937,60345.0,60344.0,0.082837]
[1726601859818,0.082836,60345.0,60344.0,0.082837]
[1726601860003,0.082836,60345.0,60344.0,0.13235803]
[1726601860207,0.078836,60345.0,60344.0,0.13235803]
[1726601860813,0.079836,60345.0,60344.0,0.14035803]
[1726601861011,0.079836,60345.0,60344.0,0.008]
[1726601861205,0.162672,60345.0,60344.0,0.008]
[1726601862015,0.079836,60345.0,60344.0,0.008]
[1726601863211,0.001,60345.0,60344.0,0.090837]
[1726601863406,0.00768903,60350.0,60344.0,0.083837]
[1726601863610,0.19,60351.0,60344.0,0.083837]
[1726601863815,0.082834,60347.0,60344.0,0.083837]
[1726601864008,0.082834,60347.0,60345.0,0.082835]
[1726601864413,0.19,60351.0,60344.0,0.001]
[1726601864610,0.082832,60349.0,60348.0,0.082831]
[1726601866814,0.19,60351.0,60348.0,0.00766232]
[1726601867119,0.272827,60351.0,60350.0,0.082829]
[1726601867616,0.00787229,60353.0,60347.0,0.3608]
[1726601867617,0.004,60349.0,60347.0,0.3608]
[1726601867819,0.082825,60353.0,60347.0,0.3608]
[1726601868010,0.19248584,60354.0,60347.0,0.41032103]
[1726601868215,0.19248584,60354.0,60353.0,0.082825]
[1726601868410,0.19248584,60354.0,60353.0,0.13234603]
[1726601870825,0.20148584,60354.0,60353.0,0.13234603]
[1726601871523,0.01148584,60354.0,60353.0,0.49314603]
[1726601871719,0.082817,60359.0,60353.0,0.41855979]
[1726601871910,0.3608,60364.0,60353.0,0.41855979]
[1726601872227,0.19,60365.0,60360.0,0.082815]
[1726601872418,0.19,60365.0,60363.0,0.082811]
[1726601872624,0.08281,60364.0,60363.0,0.13233203]
[1726601872919,0.19,60365.0,60363.0,0.04952103]
[1726601873124,0.19,60365.0,60364.0,0.08281]
[1726601873527,0.19,60365.0,60364.0,0.49313103]
[1726601874027,0.204,60365.0,60364.0,0.49313103]
[1726601874323,0.286808,60365.0,60364.0,0.41032103]
[1726601874517,0.272808,60365.0,60364.0,0.41032103]
[1726601874719,0.286808,60365.0,60364.0,0.41132103]
[1726601874916,0.286808,60365.0,60364.0,0.50332103]
[1726601876223,0.272808,60365.0,60364.0,0.50232103]
[1726601876429,0.284808,60365.0,60364.0,0.50332103]
[1726601878032,0.284808,60365.0,60364.0,0.58613103]
[1726601878232,0.284808,60365.0,60364.0,0.22533103]
[1726601879319,0.284808,60365.0,60364.0,0.58613103]
[1726601880226,0.367616,60365.0,60364.0,0.14252103]
[1726601880925,0.450424,60365.0,60364.0,0.001]
[1726601881127,0.4909855,60365.0,60364.0,0.001]
[1726601881627,0.450424,60365.0,60364.0,0.001]
[1726601883339,0.367616,60365.0,60364.0,0.001]
[1726601889638,0.60594084,60365.0,60364.0,0.001]
[1726601890439,0.45901938,60365.0,60364.0,0.001]
[1726601892040,0.40817785,60365.0,60364.0,0.001]
[1726601892841,0.76897785,60365.0,60364.0,0.001]
[1726601893529,0.85178582,60365.0,60364.0,0.001]
[1726601893735,0.76897782,60365.0,60364.0,0.001]
[1726601893933,0.85178582,60365.0,60364.0,0.001]
[1726601894135,1.34878582,60365.0,60364.0,0.001]
[1726601894344,1.39962768,60365.0,60364.0,0.001]
[1726601895037,1.399629,60365.0,60364.0,0.001]
[1726601895239,1.4805885,60365.0,60364.0,0.001]
[1726601895439,1.5633965,60365.0,60364.0,0.001]
[1726601895634,1.399629,60365.0,60364.0,0.001]
[1726601895941,0.248445,60360.0,60359.0,0.1209]
[1726601896143,0.70065,60360.0,60359.0,0.1209]
[1726601896439,1.28643369,60360.0,60359.0,0.1209]
[1726601896836,0.609245,60360.0,60359.0,0.1209]
[1726601897638,0.623245,60360.0,60359.0,0.1209]
[1726601901533,0.457615,60360.0,60359.0,0.25323703]
[1726601901730,0.54043,60360.0,60359.0,0.25323703]
[1726601901937,0.457615,60360.0,60359.0,0.25323703]
[1726601902540,0.54043,60360.0,60359.0,0.1209]
[1726601903338,0.457615,60360.0,60359.0,0.203716]
[1726601903539,0.54043,60360.0,60359.0,0.203716]
[1726601903739,0.457615,60360.0,60359.0,0.203716]
[1726601904631,0.72916898,60360.0,60359.0,0.203716]
[1726601904830,0.54902029,60360.0,60359.0,0.203716]
[1726601905044,0.60842946,60360.0,60359.0,0.25323703]
[1726601905341,0.72989373,60360.0,60359.0,0.25323703]
[1726601905742,0.63183529,60360.0,60359.0,0.17042103]
[1726601905930,0.81270873,60360.0,60359.0,0.17042103]
[1726601906129,0.72989373,60360.0,60359.0,0.17042103]
[1726601906329,0.78930224,60360.0,60359.0,0.17042103]
[1726601906530,0.72989373,60360.0,60359.0,0.17042103]
[1726601906736,0.54902029,60360.0,60359.0,0.17042103]
[1726601907045,0.18822029,60360.0,60359.0,0.25323703]
[1726601908334,0.27103534,60360.0,60359.0,0.25323703]
[1726601908536,0.18822034,60360.0,60359.0,0.25323703]
[1726601908736,0.27103534,60360.0,60359.0,0.25323703]
[1726601908935,0.18822034,60360.0,60359.0,0.25323703]
[1726601909136,0.27103534,60360.0,60359.0,0.25323703]
[1726601909437,0.18822034,60360.0,60359.0,0.25323703]
[1726601910239,0.27103534,60360.0,60359.0,0.25323703]
[1726601910843,0.27103534,60360.0,60359.0,0.1209]
[1726601911745,0.17963,60360.0,60359.0,0.1209]
[1726601911947,0.17963,60360.0,60359.0,0.203716]
[1726601911948,0.096815,60360.0,60359.0,0.203716]
[1726601914249,0.096815,60360.0,60359.0,0.25323703]
[1726601914744,0.17963,60360.0,60359.0,0.17042103]
[1726601915052,0.096815,60360.0,60359.0,0.17042103]
[1726601915252,0.096815,60360.0,60359.0,0.25323703]
[1726601920653,0.17963,60360.0,60359.0,0.1209]
[1726601920956,0.262445,60360.0,60359.0,0.1209]
[1726601921456,0.30301212,60360.0,60359.0,0.1209]
[1726601921648,0.262445,60360.0,60359.0,0.1209]
[1726601922158,0.17963,60360.0,60359.0,0.1209]
[1726601925154,0.096815,60360.0,60359.0,0.203716]
[1726601926349,0.17963,60360.0,60359.0,0.203716]
[1726601926643,0.43572375,60360.0,60359.0,0.203716]
[1726601926844,0.27103624,60360.0,60359.0,0.203716]
[1726601927759,0.35385124,60360.0,60359.0,0.1209]
[1726601928080,0.27103793,60360.0,60359.0,0.1209]
[1726601930545,0.51132173,60360.0,60359.0,0.1209]
[1726601930762,0.51132173,60360.0,60359.0,0.203716]
[1726601930960,0.41258286,60360.0,60359.0,0.25323703]
[1726601931260,0.24763327,60360.0,60359.0,0.25323703]
[1726601931447,0.16481827,60360.0,60359.0,0.33605303]
[1726601931652,0.00156001,60361.0,60360.0,0.082815]
[1726601931653,0.16502514,60361.0,60360.0,0.082815]
[1726601931863,0.16502514,60361.0,60359.0,0.25323703]
[1726601931864,0.32373678,60363.0,60362.0,0.082811]
[1726601932164,0.55232,60369.0,60363.0,0.082811]
[1726601932165,0.18151544,60364.0,60363.0,0.082811]
[1726601932654,0.45432344,60365.0,60364.0,0.08281]
[1726601933059,0.45432344,60365.0,60364.0,0.13233103]
[1726601934358,0.05939822,60368.0,60365.0,0.49696]
[1726601934557,0.05939822,60368.0,60364.0,1.20032103]
[1726601934558,0.19,60374.0,60370.0,0.082801]
[1726601934770,0.165602,60370.0,60369.0,0.00248472]
[1726601935065,0.355602,60370.0,60369.0,0.00248472]
[1726601935361,0.355616,60365.0,60364.0,0.001]
[1726601935550,0.716416,60365.0,60364.0,0.001]
[1726601936652,0.633608,60365.0,60364.0,0.001]
[1726601936856,0.5508,60365.0,60364.0,0.001]
[1726601937253,0.3608,60365.0,60362.0,0.082812]
[1726601937452,0.3608,60365.0,60362.0,0.13233303]
[1726601937453,0.19,60363.0,60362.0,0.13233303]
[1726601938154,0.189,60363.0,60362.0,0.13233303]
[1726601938755,0.189,60363.0,60362.0,0.13333303]
[1726601939364,0.3608,60365.0,60364.0,0.08281]
[1726601939558,0.19,60371.0,60370.0,0.082801]
[1726601939959,0.19,60371.0,60370.0,0.13232203]
[1726601940164,0.19,60375.0,60370.0,0.13232203]
[1726601940366,0.19,60375.0,60374.0,0.082796]
[1726601940758,0.19,60375.0,60374.0,0.04952103]
[1726601940959,0.0828,60371.0,60370.0,0.001]
[1726601941163,0.6336,60371.0,60370.0,0.001]
[1726601941469,0.5508,60371.0,60370.0,0.083801]
[1726601941970,0.19,60371.0,60370.0,0.082801]
[1726601943564,0.443592,60377.0,60368.0,0.082804]
[1726601943565,0.3608,60377.0,60368.0,0.082804]
[1726601943769,0.3608,60377.0,60376.0,0.082793]
[1726601945069,0.3628,60377.0,60376.0,0.083793]
[1726601945271,0.002,60377.0,60376.0,0.166586]
[1726601945572,0.002,60377.0,60376.0,0.1744448]
[1726601946271,0.19,60384.0,60376.0,0.1744448]
[1726601946272,0.19,60384.0,60383.0,0.082784]
[1726601946462,0.19,60384.0,60382.0,0.082784]
[1726601946770,0.19,60384.0,60383.0,0.082784]
[1726601948471,0.192,60384.0,60383.0,0.083784]
[1726601949773,0.34275616,60384.0,60383.0,0.001]
[1726601949977,0.34275616,60384.0,60383.0,0.00087566]
[1726601949978,0.42553816,60384.0,60383.0,0.00087566]
[1726601950380,0.42553816,60384.0,60383.0,0.08365966]
[1726601951080,0.42554066,60384.0,60383.0,0.08365966]
[1726601953979,0.34275866,60384.0,60383.0,0.08365966]
[1726601954175,0.34275866,60384.0,60383.0,0.09171047]
[1726601955979,0.42554066,60384.0,60383.0,0.09171047]
[1726601956180,0.34275866,60384.0,60383.0,0.09171047]
[1726601956782,0.274782,60384.0,60383.0,0.09171047]
[1726601959484,0.17926696,60384.0,60383.0,0.09171047]
[1726601964783,0.27063443,60384.0,60383.0,0.09171047]
[1726601967679,0.4346815,60384.0,60383.0,0.09171047]
[1726601967884,0.27063443,60384.0,60383.0,0.09171047]
[1726601968485,0.4346815,60384.0,60383.0,0.09171047]
[1726601969480,0.27063443,60384.0,60383.0,0.09171047]
[1726601970485,0.27063443,60384.0,60378.0,0.00248412]
[1726601970677,0.19,60379.0,60378.0,0.00248412]
[1726601970883,0.09137314,60379.0,60378.0,0.08527412]
[1726601971184,0.09137314,60379.0,60378.0,0.16806412]
[1726601971380,0.22147005,60379.0,60378.0,0.16806412]
[1726601971576,0.22147005,60379.0,60378.0,0.25085412]
[1726601971780,0.00148,60388.0,60387.0,0.082778]
[1726601971982,0.19,60397.0,60387.0,0.31253217]
[1726601972886,0.082773,60391.0,60388.0,0.082777]
[1726601973593,0.082774,60390.0,60388.0,0.082777]
[1726601974186,0.082774,60390.0,60388.0,0.09095297]
[1726601974880,0.08525968,60389.0,60388.0,0.09095297]
[1726601975083,0.27525968,60389.0,60388.0,0.083777]
[1726601975685,0.19248468,60389.0,60388.0,0.083777]
[1726601979789,0.28383932,60389.0,60388.0,0.083777]
[1726601980391,0.09383932,60389.0,60388.0,0.083777]
[1726601984701,0.09383932,60389.0,60376.0,0.082792]
[1726601984702,0.082828,60351.0,60349.0,0.0083999]
[1726601984898,0.09135464,60350.0,60345.0,0.19]
[1726601985091,0.14787367,60357.0,60345.0,0.19836594]
[1726601985296,0.14787367,60356.0,60352.0,0.082825]
[1726601985498,0.50867367,60358.0,60353.0,0.1123]
[1726601985795,0.05083652,60357.0,60353.0,0.12056778]
[1726601986001,0.3608,60358.0,60353.0,0.12056778]
[1726601986201,0.05083659,60357.0,60353.0,0.12056778]
[1726601986398,0.2151494,60357.0,60353.0,0.12056778]
[1726601986600,0.05083652,60356.0,60353.0,0.12056778]
[1726601986794,0.3608,60358.0,60353.0,0.12056778]
[1726601987492,0.001,60356.0,60353.0,0.12056778]
[1726601987895,0.001,60356.0,60353.0,0.61764778]
[1726601988112,0.3628,60358.0,60353.0,0.62547577]
[1726601988293,0.3628,60358.0,60353.0,0.12839577]
[1726601988805,0.002,60356.0,60353.0,0.12839577]
[1726601990200,0.3608,60358.0,60353.0,0.12839577]
[1726601990407,0.3618,60358.0,60353.0,0.12839577]
[1726601990903,0.001,60356.0,60353.0,0.12839577]
[1726601991603,0.08282,60357.0,60353.0,0.12839577]
[1726601992191,0.002,60356.0,60353.0,0.12839577]
[1726601992701,0.082823,60355.0,60353.0,0.12839577]
[1726601993303,0.082823,60355.0,60353.0,0.62547577]
[1726601994008,0.082823,60355.0,60353.0,0.12839577]
[1726601994400,0.082823,60354.0,60353.0,0.12839577]
[1726601994903,0.082823,60354.0,60352.0,0.06614347]
[1726601994904,0.12420713,60354.0,60352.0,0.06614347]
[1726601995109,0.165658,60350.0,60349.0,0.0024855]
[1726601995303,0.716458,60350.0,60349.0,0.0024855]
[1726601995499,0.633629,60350.0,60349.0,0.0024855]
[1726601995696,0.716458,60350.0,60349.0,0.01061806]
[1726601996803,0.633629,60350.0,60349.0,0.01061806]
[1726601997406,0.716458,60350.0,60349.0,0.01061806]
[1726601998101,0.716458,60350.0,60349.0,0.0024855]
[1726601998102,0.800287,60350.0,60349.0,0.0024855]
[1726601998902,0.082836,60345.0,60340.0,0.0024859]
[1726601999102,0.3608,60341.0,60340.0,0.0024859]
[1726601999701,0.526482,60341.0,60340.0,0.0024859]
[1726602000403,0.443641,60341.0,60340.0,0.0024859]
[1726602001299,0.443641,60341.0,60340.0,0.0114859]
[1726602003905,0.526482,60341.0,60340.0,0.0114859]
[1726602007600,0.443641,60341.0,60340.0,0.0943289]
[1726602007800,0.25303264,60341.0,60340.0,0.0943289]
[1726602008107,0.0024859,60345.0,60344.0,0.082837]
[1726602008305,0.0024859,60345.0,60344.0,0.272837]
[1726602008502,0.0024859,60345.0,60344.0,0.32226529]
[1726602008707,0.0024859,60345.0,60344.0,0.082837]
[1726602009300,0.0024859,60345.0,60344.0,0.14898047]
[1726602009509,0.0024859,60345.0,60340.0,0.36452904]
[1726602009510,0.19,60345.0,60340.0,0.0024859]
[1726602009808,0.19,60345.0,60344.0,0.084837]
[1726602010009,0.5508,60345.0,60344.0,0.002]
[1726602010212,0.5508,60345.0,60344.0,0.13416061]
[1726602010410,0.5508,60345.0,60344.0,0.084837]
[1726602011212,0.5508,60345.0,60344.0,0.082837]
[1726602011911,0.5508,60345.0,60344.0,0.084837]
[1726602012413,0.633636,60345.0,60344.0,0.15059624]
[1726602012714,0.443636,60345.0,60344.0,0.084837]
[1726602013015,0.3608,60345.0,60344.0,0.15059624]
[1726602013415,0.3608,60345.0,60344.0,0.084837]
[1726602014309,0.3608,60345.0,60344.0,0.29328883]
[1726602014909,0.3608,60345.0,60344.0,0.16703914]
[1726602015319,0.3608,60345.0,60344.0,0.29392433]
[1726602015615,0.3608,60356.0,60355.0,0.082822]
[1726602016214,0.1208,60360.0,60359.0,0.082816]
[1726602016610,0.203615,60360.0,60359.0,0.29155937]
[1726602017019,0.203615,60360.0,60359.0,0.443616]
[1726602017203,0.203615,60360.0,60356.0,0.20182]
[1726602017204,0.082819,60357.0,60356.0,0.20182]
[1726602017406,0.272819,60357.0,60356.0,0.20182]
[1726602017908,0.272819,60357.0,60356.0,0.21000699]
[1726602018515,0.271819,60357.0,60356.0,0.21000699]
[1726602018920,0.271819,60357.0,60356.0,0.09100699]
[1726602019113,0.273819,60357.0,60356.0,0.09200699]
[1726602019714,0.192,60357.0,60356.0,0.09200699]
[1726602020221,0.002,60357.0,60356.0,0.09200699]
[1726602023826,0.084819,60357.0,60356.0,0.09200699]
[1726602024026,0.084819,60357.0,60356.0,0.09100699]
[1726602024427,0.082819,60357.0,60356.0,0.09100699]
[1726602024626,0.084819,60357.0,60356.0,0.09100699]
[1726602026217,0.082822,60355.0,60350.0,0.1148]
[1726602026519,0.082822,60355.0,60349.0,0.05199862]
[1726602026520,0.165658,60350.0,60349.0,0.00248552]
[1726602027632,0.165658,60350.0,60349.0,0.00348552]
[1726602028132,0.165658,60350.0,60349.0,0.01158147]
[1726602028335,0.165658,60350.0,60349.0,0.00348552]
[1726602028835,0.168658,60350.0,60349.0,0.00248552]
[1726602029338,0.168658,60350.0,60349.0,0.08531552]
[1726602029724,0.003,60350.0,60349.0,0.08531552]
[1726602030327,0.003,60350.0,60349.0,0.44611552]
[1726602030523,0.003,60350.0,60349.0,0.52894552]
[1726602030735,0.003,60350.0,60349.0,0.44611552]
[1726602031927,0.003,60350.0,60349.0,0.52863999]
[1726602032133,0.003,60350.0,60349.0,0.44611552]
[1726602033347,0.003,60350.0,60349.0,0.52894552]
[1726602033535,0.003,60350.0,60349.0,0.61146999]
[1726602033736,0.003,60350.0,60349.0,0.44611552]
[1726602034456,0.082836,60345.0,60344.0,0.06608801]
[1726602034751,0.082836,60345.0,60334.0,0.09903677]
[1726602034752,0.165682,60341.0,60340.0,0.0495676]
[1726602034943,0.082844,60339.0,60338.0,0.0495676]
[1726602035142,0.19,60340.0,60337.0,0.0495676]
[1726602035143,0.082845,60338.0,60337.0,0.0495676]
[1726602035352,0.272845,60338.0,60337.0,0.0495676]
[1726602036245,0.082847,60337.0,60336.0,0.0495676]
[1726602037052,0.075847,60337.0,60336.0,0.0495676]
[1726602037249,0.082851,60334.0,60332.0,0.07393374]
[1726602037450,0.443651,60334.0,60332.0,0.06608801]
[1726602037752,0.432651,60334.0,60332.0,0.06608801]
[1726602037946,0.19,60333.0,60332.0,0.06608883]
[1726602038245,0.19,60333.0,60331.0,0.00807743]
[1726602038246,0.16571,60331.0,60330.0,0.53234]
[1726602038453,0.16571,60331.0,60330.0,0.5315]
[1726602038653,0.16571,60331.0,60330.0,0.3523]
[1726602038957,0.26251,60331.0,60330.0,0.1731]
[1726602039548,0.87038049,60331.0,60330.0,0.1731]
[1726602039747,0.082858,60329.0,60310.0,0.05746073]
[1726602039956,0.5508,60311.0,60297.0,0.2265]
[1726602040151,0.19,60299.0,60298.0,0.0829]
[1726602040351,0.182,60299.0,60298.0,0.0829]
[1726602041061,0.181,60299.0,60298.0,0.0829]
[1726602041366,0.19,60303.0,60302.0,0.082895]
[1726602041547,0.3608,60305.0,60303.0,0.082893]
[1726602041752,0.3608,60305.0,60298.0,0.001]
[1726602042460,0.3608,60305.0,60304.0,0.082892]
[1726602042657,0.00810547,60317.0,60316.0,0.082876]
[1726602042658,0.3608,60317.0,60316.0,0.082876]
[1726602042862,0.08287,60321.0,60318.0,0.082872]
[1726602043069,0.3608,60323.0,60316.0,0.19]
[1726602043458,0.3608,60323.0,60322.0,0.082867]
[1726602044464,0.3618,60323.0,60322.0,0.082867]
[1726602044953,0.3608,60323.0,60322.0,0.082867]
[1726602045149,0.3688,60323.0,60322.0,0.082867]
[1726602046157,0.3688,60323.0,60318.0,0.082873]
[1726602046359,0.451666,60323.0,60318.0,0.082873]
[1726602046557,0.082869,60321.0,60318.0,0.082873]
[1726602046766,0.082869,60321.0,60318.0,0.09074853]
[1726602047364,0.04140604,60321.0,60318.0,0.09074853]
[1726602048170,0.04340604,60321.0,60318.0,0.09074853]
[1726602049162,0.082871,60320.0,60318.0,0.09074853]
[1726602049362,0.082871,60320.0,60318.0,0.09058853]
[1726602049574,0.082871,60320.0,60319.0,0.082871]
[1726602049763,0.082878,60314.0,60313.0,0.1165]
[1726602050070,0.3608,60314.0,60313.0,0.12459729]
[1726602050464,0.443678,60314.0,60313.0,0.12459729]
[1726602051264,0.444678,60314.0,60313.0,0.12459729]
[1726602051768,0.3618,60314.0,60313.0,0.20747729]
[1726602054865,0.444678,60314.0,60313.0,0.20747729]
[1726602057167,0.444678,60314.0,60313.0,0.12459729]
[1726602057363,0.444678,60314.0,60313.0,0.00809729]
[1726602057563,0.444678,60314.0,60311.0,0.082882]
[1726602057564,0.082881,60312.0,60311.0,0.082882]
[1726602058671,0.082885,60310.0,60309.0,0.082884]
[1726602058873,0.082887,60308.0,60307.0,0.12507345]
[1726602059075,0.082887,60308.0,60282.0,0.082921]
[1726602059076,0.082902,60297.0,60282.0,0.082921]
[1726602059274,1.49969838,60310.0,60282.0,0.082921]
[1726602059275,0.443706,60294.0,60283.0,0.00811096]
[1726602059582,0.082912,60290.0,60279.0,0.1171]
[1726602059781,0.29,60284.0,60279.0,0.12536293]
[1726602059971,0.082923,60282.0,60279.0,0.12536293]
[1726602060171,0.3608,60280.0,60279.0,0.1251558]
[1726602060367,0.3608,60280.0,60279.0,0.0080558]
[1726602060368,0.733725,60280.0,60279.0,0.0080558]
[1726602060571,0.082929,60277.0,60273.0,0.00248867]
[1726602060971,0.082929,60277.0,60265.0,0.1167]
[1726602061173,0.082929,60277.0,60268.0,0.0081178]
[1726602061370,0.082929,60277.0,60260.0,0.1187]
[1726602061371,1.09772,60277.0,60250.0,0.3608]
[1726602061579,0.3608,60268.0,60259.0,0.3608]
[1726602061876,0.3608,60268.0,60255.0,0.1167]
[1726602062082,0.08295,60263.0,60255.0,0.1167]
[1726602062268,0.29,60263.0,60255.0,0.1167]
[1726602063177,0.3608,60268.0,60255.0,0.1167]
[1726602063178,0.443742,60268.0,60255.0,0.1167]
[1726602063577,0.3608,60263.0,60255.0,0.199659]
[1726602063781,0.3608,60268.0,60260.0,0.29]
[1726602063983,0.001,60263.0,60256.0,0.114]
[1726602064378,0.28914894,60263.0,60256.0,0.114]
[1726602064883,0.08295,60262.0,60256.0,0.114]
[1726602065081,0.08295,60262.0,60255.0,0.1167]
[1726602065774,0.3618,60263.0,60255.0,0.1167]
[1726602065978,0.3618,60263.0,60257.0,0.082956]
[1726602066278,0.3618,60263.0,60260.0,0.082953]
[1726602066786,0.001,60263.0,60259.0,0.3608]
[1726602066990,0.001,60262.0,60259.0,0.3608]
[1726602067175,0.001,60262.0,60261.0,0.082951]
[1726602067372,0.00248945,60267.0,60261.0,0.082951]
[1726602067373,0.00248945,60267.0,60266.0,0.082944]
[1726602068683,0.43222145,60275.0,60266.0,0.082944]
[1726602068986,0.001,60267.0,60266.0,0.082944]
[1726602069375,0.001,60267.0,60266.0,0.08944318]
[1726602070177,0.001,60267.0,60266.0,0.21583947]
[1726602070480,0.001,60267.0,60266.0,0.29787977]
[1726602070686,0.001,60267.0,60266.0,0.21684704]
[1726602070687,0.002,60267.0,60266.0,0.21684704]
[1726602070981,0.001,60267.0,60266.0,0.21684704]
[1726602071681,0.00015556,60267.0,60266.0,0.13390304]
[1726602071884,0.00015556,60267.0,60266.0,0.001]
[1726602072280,0.08309856,60267.0,60266.0,0.001]
[1726602072888,0.00015556,60267.0,60266.0,0.001]
[1726602073090,0.08309856,60267.0,60266.0,0.001]
[1726602073479,0.00015556,60267.0,60266.0,0.083944]
[1726602074288,0.00015556,60267.0,60266.0,0.373944]
[1726602074682,0.00015556,60267.0,60266.0,0.734744]
[1726602074886,0.00015556,60267.0,60266.0,0.86114348]
[1726602075284,0.00015556,60267.0,60266.0,1.04312425]
[1726602075481,0.00015556,60267.0,60266.0,0.96018025]
[1726602075682,0.00015556,60267.0,60266.0,0.57114348]
[1726602075876,0.00015556,60267.0,60266.0,0.65314139]
[1726602076192,0.44389856,60267.0,60266.0,0.001]
[1726602076487,0.08309856,60267.0,60266.0,0.001]
[1726602078289,0.52684156,60267.0,60266.0,0.001]
[1726602078984,1.62464156,60267.0,60266.0,0.001]
[1726602079288,1.62464156,60267.0,60256.0,0.16495591]
[1726602079289,1.45875556,60267.0,60256.0,0.16495591]
[1726602079490,1.45875556,60267.0,60244.0,0.3608]
[1726602079491,1.0116,60257.0,60249.0,0.08199791]
[1726602079786,0.1134,60256.0,60254.0,0.082961]
[1726602079986,0.05528467,60256.0,60254.0,0.082961]
[1726602080189,0.082959,60255.0,60254.0,0.082961]
[1726602080582,0.36268001,60257.0,60252.0,0.08199791]
[1726602080583,0.33306516,60257.0,60252.0,0.08199791]
[1726602080790,0.41702216,60257.0,60256.0,0.082958]
[1726602081200,0.41602216,60257.0,60256.0,0.082958]
[1726602081689,0.33306516,60257.0,60256.0,0.082958]
[1726602081898,0.33406516,60257.0,60256.0,0.082958]
[1726602082094,0.33506516,60257.0,60256.0,0.084958]
[1726602082392,0.33506516,60257.0,60256.0,0.29338428]
[1726602082393,0.002,60257.0,60256.0,0.29338428]
[1726602082589,0.3628,60257.0,60250.0,0.09903677]
[1726602082791,0.082962,60253.0,60252.0,0.082963]
[1726602082998,0.082959,60256.0,60253.0,0.082961]
[1726602083293,0.3628,60257.0,60253.0,0.082962]
[1726602083294,0.082961,60254.0,60253.0,0.082962]
[1726602083482,0.082961,60254.0,60253.0,0.190862]
[1726602083686,0.082961,60254.0,60247.0,0.29]
[1726602083687,0.082964,60252.0,60246.0,0.09903677]
[1726602083889,0.6508,60254.0,60245.0,0.09903677]
[1726602084093,0.6508,60254.0,60239.0,0.1119]
[1726602084094,0.08297,60247.0,60241.0,0.19050675]
[1726602084391,0.082972,60246.0,60242.0,0.09903677]
[1726602084703,0.082972,60246.0,60233.0,0.2268]
[1726602084704,0.083004,60223.0,60202.0,0.083031]
[1726602084992,0.443819,60212.0,60209.0,0.1087]
[1726602085194,0.08302,60211.0,60209.0,0.1087]
[1726602085492,0.3608,60212.0,60206.0,0.2282]
[1726602085684,0.3608,60207.0,60206.0,0.2282]
[1726602086087,0.443826,60207.0,60206.0,0.09866506]
[1726602086283,0.443826,60207.0,60183.0,0.05]
[1726602086284,0.3608,60201.0,60183.0,0.05]
[1726602086483,0.3608,60185.0,60183.0,0.05]
[1726602086991,0.3608,60190.0,60184.0,0.73002868]
[1726602087183,0.36329259,60196.0,60189.0,0.29]
[1726602087390,0.00249259,60196.0,60195.0,0.29]
[1726602087586,0.00249259,60196.0,60195.0,0.3987]
[1726602088096,0.3608,60201.0,60195.0,0.3987]
[1726602088295,0.3608,60201.0,60195.0,0.1087]
[1726602088499,0.3608,60201.0,60191.0,0.00249204]
[1726602088500,0.3628,60196.0,60191.0,0.00249204]
[1726602088794,0.3608,60194.0,60183.0,0.04900169]
[1726602089001,0.3608,60187.0,60183.0,0.04900169]